[Event "*** Titled Tuesday Blitz"]
[Site "Chess.com"]
[Date "2020.04.21"]
[Round "7"]
[White "Parhamov"]
[Black "rpragchess"]
[Result "0-1"]
[WhiteElo "3033"]
[BlackElo "2794"]
[TimeControl "180+1"]
[EndTime "11:24:58 PDT"]
[Termination "rpragchess won on time"]

1. e4 {[%clk 0:03:00.9]} 1... c5 {[%clk 0:02:54.6]} 2. Nf3 {[%clk 0:02:59]} 2...
e6 {[%clk 0:02:54.4]} 3. d4 {[%clk 0:02:59.4]} 3... cxd4 {[%clk 0:02:55.3]} 4.
Nxd4 {[%clk 0:03:00.3]} 4... a6 {[%clk 0:02:55.8]} 5. Nc3 {[%clk 0:03:00.7]}
5... Qc7 {[%clk 0:02:55.6]} 6. g3 {[%clk 0:03:00.6]} 6... Bb4 {[%clk 0:02:54.8]}
7. Ne2 {[%clk 0:03:00.4]} 7... Nf6 {[%clk 0:02:53]} 8. Bg2 {[%clk 0:03:00.4]}
8... O-O {[%clk 0:02:52.5]} 9. O-O {[%clk 0:03:00.2]} 9... Be7 {[%clk
0:02:49.6]} 10. a4 {[%clk 0:03:00]} 10... d6 {[%clk 0:02:49.1]} 11. h3 {[%clk
0:02:59.8]} 11... Nc6 {[%clk 0:02:47.6]} 12. g4 {[%clk 0:03:00.2]} 12... b6
{[%clk 0:02:47.1]} 13. g5 {[%clk 0:03:00.3]} 13... Nd7 {[%clk 0:02:46.5]} 14.
Ng3 {[%clk 0:02:59.5]} 14... Bb7 {[%clk 0:02:42.4]} 15. f4 {[%clk 0:02:59.7]}
15... b5 {[%clk 0:02:42.4]} 16. Be3 {[%clk 0:02:55.7]} 16... Na5 {[%clk
0:02:29]} 17. Rb1 {[%clk 0:02:48.1]} 17... Nc4 {[%clk 0:02:14.5]} 18. Bd4 {[%clk
0:02:47.8]} 18... e5 {[%clk 0:02:04.8]} 19. Nf5 {[%clk 0:02:46.2]} 19... Rae8
{[%clk 0:01:47.9]} 20. Bf2 {[%clk 0:02:45.9]} 20... exf4 {[%clk 0:01:47.5]} 21.
axb5 {[%clk 0:02:45.5]} 21... Bxg5 {[%clk 0:01:44]} 22. bxa6 {[%clk 0:02:45.5]}
22... Bxa6 {[%clk 0:01:43.6]} 23. Nd5 {[%clk 0:02:45.4]} 23... Qb8 {[%clk
0:01:39.2]} 24. Qg4 {[%clk 0:02:36]} 24... h6 {[%clk 0:01:30]} 25. h4 {[%clk
0:02:35.9]} 25... Nce5 {[%clk 0:01:27.3]} 26. Qh3 {[%clk 0:02:31.8]} 26... Bxf1
{[%clk 0:01:15.8]} 27. Rxf1 {[%clk 0:02:31.2]} 27... Bd8 {[%clk 0:01:09.1]} 28.
Nxf4 {[%clk 0:02:23.6]} 28... Bb6 {[%clk 0:01:06.9]} 29. Qg3 {[%clk 0:02:23.3]}
29... g6 {[%clk 0:01:03.9]} 30. Bxb6 {[%clk 0:02:13.3]} 30... Qxb6+ {[%clk
0:01:01.5]} 31. Kh1 {[%clk 0:02:13.2]} 31... Kh7 {[%clk 0:00:58.8]} 32. Nd5
{[%clk 0:02:04.1]} 32... Qxb2 {[%clk 0:00:56.7]} 33. Bh3 {[%clk 0:01:55.9]}
33... Qxc2 {[%clk 0:00:27.9]} 34. Nxd6 {[%clk 0:01:55.1]} 34... Rb8 {[%clk
0:00:22.5]} 35. Rf2 {[%clk 0:01:52.7]} 35... Rb1+ {[%clk 0:00:13.9]} 36. Kh2
{[%clk 0:01:53]} 36... Qd1 {[%clk 0:00:14.2]} 37. Rf1 {[%clk 0:01:46.7]} 37...
Qe2+ {[%clk 0:00:14.4]} 38. Rf2 {[%clk 0:01:46.8]} 38... Qe1 {[%clk 0:00:14.9]}
39. Qg2 {[%clk 0:01:44.8]} 39... Nc5 {[%clk 0:00:07.2]} 40. h5 {[%clk
0:01:43.4]} 40... Ncd3 {[%clk 0:00:03.5]} 41. hxg6+ {[%clk 0:01:29]} 41... Nxg6
{[%clk 0:00:04.4]} 42. Nf6+ {[%clk 0:01:15.2]} 42... Kh8 {[%clk 0:00:04.2]} 43.
Rf1 {[%clk 0:01:08]} 43... Qxf1 {[%clk 0:00:03.7]} 44. Qxf1 {[%clk 0:01:08.9]}
44... Rxf1 {[%clk 0:00:04.6]} 45. Bxf1 {[%clk 0:01:09.8]} 45... Nde5 {[%clk
0:00:05.4]} 46. Kg3 {[%clk 0:00:58.8]} 46... Rd8 {[%clk 0:00:05.5]} 47. Nf5
{[%clk 0:00:57.7]} 47... Rd1 {[%clk 0:00:06.1]} 48. Be2 {[%clk 0:00:56.8]} 48...
Rg1+ {[%clk 0:00:06.7]} 49. Kf2 {[%clk 0:00:56.5]} 49... Rh1 {[%clk 0:00:07.1]}
50. Kg3 {[%clk 0:00:53.3]} 50... Rg1+ {[%clk 0:00:06.4]} 51. Kf2 {[%clk
0:00:53.3]} 51... Ra1 {[%clk 0:00:06.9]} 52. Kg3 {[%clk 0:00:53.3]} 52... Ra2
{[%clk 0:00:06.8]} 53. Bd1 {[%clk 0:00:51.4]} 53... Ra3+ {[%clk 0:00:06.9]} 54.
Kf2 {[%clk 0:00:49.5]} 54... Nf4 {[%clk 0:00:07.5]} 55. Nxh6 {[%clk 0:00:46.9]}
55... Kg7 {[%clk 0:00:07.6]} 56. Nhg4 {[%clk 0:00:46.9]} 56... Nxg4+ {[%clk
0:00:08]} 57. Nxg4 {[%clk 0:00:46]} 57... Nh3+ {[%clk 0:00:08.6]} 58. Kg2 {[%clk
0:00:45.2]} 58... Ng5 {[%clk 0:00:09.5]} 59. e5 {[%clk 0:00:38.6]} 59... Ne4
{[%clk 0:00:09.9]} 60. Bf3 {[%clk 0:00:36.5]} 60... Ra2+ {[%clk 0:00:09.5]} 61.
Kg1 {[%clk 0:00:33.9]} 61... Ng5 {[%clk 0:00:09.8]} 62. Bd5 {[%clk 0:00:31.5]}
62... Nh3+ {[%clk 0:00:09.9]} 63. Kh1 {[%clk 0:00:29.7]} 63... Rd2 {[%clk
0:00:09.9]} 64. Ne3 {[%clk 0:00:26.5]} 64... Nf4 {[%clk 0:00:08.8]} 65. Bc4
{[%clk 0:00:23.8]} 65... Kf8 {[%clk 0:00:07.7]} 66. Kg1 {[%clk 0:00:21.9]} 66...
Nh3+ {[%clk 0:00:07.9]} 67. Kf1 {[%clk 0:00:21.5]} 67... Ng5 {[%clk 0:00:08.7]}
68. Ke1 {[%clk 0:00:22.2]} 68... Nf3+ {[%clk 0:00:08.2]} 69. Kf1 {[%clk
0:00:22.7]} 69... Nxe5 {[%clk 0:00:08.9]} 70. Be2 {[%clk 0:00:23.6]} 70... Rd4
{[%clk 0:00:08.8]} 71. Ng2 {[%clk 0:00:21.9]} 71... Ng6 {[%clk 0:00:08.6]} 72.
Ne1 {[%clk 0:00:20.9]} 72... Nf4 {[%clk 0:00:08.8]} 73. Bf3 {[%clk 0:00:21.1]}
73... Rb4 {[%clk 0:00:09.3]} 74. Kf2 {[%clk 0:00:21.1]} 74... Rb2+ {[%clk
0:00:09.5]} 75. Ke3 {[%clk 0:00:20.9]} 75... Ne6 {[%clk 0:00:10.1]} 76. Nd3
{[%clk 0:00:21.2]} 76... Rb6 {[%clk 0:00:10.4]} 77. Bd5 {[%clk 0:00:20.8]} 77...
Rd6 {[%clk 0:00:10.2]} 78. Ke4 {[%clk 0:00:20.5]} 78... Ke7 {[%clk 0:00:10.1]}
79. Nb4 {[%clk 0:00:19]} 79... Rb6 {[%clk 0:00:09.9]} 80. Nc2 {[%clk 0:00:17]}
80... Nc7 {[%clk 0:00:09]} 81. Bc4 {[%clk 0:00:16.8]} 81... Rc6 {[%clk
0:00:09.2]} 82. Ne3 {[%clk 0:00:16.8]} 82... Ne6 {[%clk 0:00:09.2]} 83. Bd5
{[%clk 0:00:16.1]} 83... Rc1 {[%clk 0:00:08.3]} 84. Nf5+ {[%clk 0:00:15.4]}
84... Kf6 {[%clk 0:00:08.5]} 85. Ne3 {[%clk 0:00:15.4]} 85... Re1 {[%clk
0:00:08.9]} 86. Kf3 {[%clk 0:00:15]} 86... Ke5 {[%clk 0:00:09.3]} 87. Ba2 {[%clk
0:00:14.1]} 87... f5 {[%clk 0:00:09.4]} 88. Kf2 {[%clk 0:00:12.5]} 88... Ra1
{[%clk 0:00:09.2]} 89. Bc4 {[%clk 0:00:11.3]} 89... Nc5 {[%clk 0:00:09.4]} 90.
Be2 {[%clk 0:00:09.5]} 90... Ne4+ {[%clk 0:00:09.2]} 91. Kf3 {[%clk 0:00:09.7]}
91... Ra3 {[%clk 0:00:08.7]} 0-1

[Event "*** Titled Tuesday Blitz"]
[Site "Chess.com"]
[Date "2020.04.21"]
[Round "7"]
[White "Muguet7"]
[Black "KarpovVadim"]
[Result "1/2-1/2"]
[WhiteElo "2498"]
[BlackElo "2323"]
[TimeControl "180+1"]
[EndTime "11:25:23 PDT"]
[Termination "Game drawn - timeout vs insufficient material"]

1. g3 {[%clk 0:03:00.3]} 1... Nf6 {[%clk 0:02:58.6]} 2. Bg2 {[%clk 0:03:00.4]}
2... d5 {[%clk 0:02:59.5]} 3. d4 {[%clk 0:03:00.6]} 3... c6 {[%clk 0:03:00.4]}
4. Nf3 {[%clk 0:03:00.7]} 4... Bf5 {[%clk 0:03:00.9]} 5. O-O {[%clk 0:03:00.9]}
5... e6 {[%clk 0:03:01.1]} 6. c4 {[%clk 0:02:59.9]} 6... h6 {[%clk 0:03:00.3]}
7. b3 {[%clk 0:02:58.9]} 7... Be7 {[%clk 0:02:58.9]} 8. Bb2 {[%clk 0:02:59]}
8... Nbd7 {[%clk 0:02:58.5]} 9. Nbd2 {[%clk 0:02:59.3]} 9... O-O {[%clk
0:02:58.6]} 10. Ne5 {[%clk 0:02:59.6]} 10... a5 {[%clk 0:02:56.9]} 11. Ndf3
{[%clk 0:02:49.8]} 11... Ne4 {[%clk 0:02:54.2]} 12. Nxd7 {[%clk 0:02:48.4]}
12... Qxd7 {[%clk 0:02:54.8]} 13. Ne5 {[%clk 0:02:48.6]} 13... Qd8 {[%clk
0:02:54.8]} 14. c5 {[%clk 0:02:37.1]} 14... Nf6 {[%clk 0:02:46.9]} 15. f3 {[%clk
0:02:23.3]} 15... Nd7 {[%clk 0:02:44.4]} 16. Nd3 {[%clk 0:02:19.1]} 16... b6
{[%clk 0:02:38.7]} 17. e4 {[%clk 0:02:15.9]} 17... Bh7 {[%clk 0:02:37]} 18. cxb6
{[%clk 0:02:13.7]} 18... Qxb6 {[%clk 0:02:35.5]} 19. Kh1 {[%clk 0:02:00.9]}
19... Rfc8 {[%clk 0:02:31.5]} 20. Rc1 {[%clk 0:01:59.5]} 20... a4 {[%clk
0:01:55.7]} 21. Bc3 {[%clk 0:01:45.8]} 21... axb3 {[%clk 0:01:53.9]} 22. axb3
{[%clk 0:01:45.9]} 22... Qb5 {[%clk 0:01:46.7]} 23. Rf2 {[%clk 0:01:40.6]} 23...
Rcb8 {[%clk 0:01:40.8]} 24. Rb2 {[%clk 0:01:38.8]} 24... Ba3 {[%clk 0:01:38.2]}
25. b4 {[%clk 0:01:20.1]} 25... Bxb2 {[%clk 0:01:35]} 26. Nxb2 {[%clk
0:01:19.9]} 26... Qb7 {[%clk 0:01:21.2]} 27. Nd3 {[%clk 0:01:16.8]} 27... Qa6
{[%clk 0:01:10.8]} 28. Nf4 {[%clk 0:01:12.6]} 28... Qa4 {[%clk 0:01:06.4]} 29.
Qe1 {[%clk 0:01:10]} 29... Nb6 {[%clk 0:01:05.4]} 30. Nh5 {[%clk 0:01:04.7]}
30... Nc4 {[%clk 0:00:57.1]} 31. Bf1 {[%clk 0:01:04.3]} 31... Nd6 {[%clk
0:00:53.1]} 32. exd5 {[%clk 0:01:02.2]} 32... cxd5 {[%clk 0:00:52]} 33. Qe5
{[%clk 0:01:01.9]} 33... Nf5 {[%clk 0:00:40.3]} 34. g4 {[%clk 0:00:55.7]} 34...
Bg6 {[%clk 0:00:39.7]} 35. Nf4 {[%clk 0:00:53.5]} 35... Ne7 {[%clk 0:00:37.3]}
36. Qd6 {[%clk 0:00:45.9]} 36... Qe8 {[%clk 0:00:31.6]} 37. b5 {[%clk 0:00:43]}
37... Rc8 {[%clk 0:00:28.4]} 38. b6 {[%clk 0:00:36.8]} 38... Rab8 {[%clk
0:00:27.4]} 39. Bd2 {[%clk 0:00:35.7]} 39... Rxc1 {[%clk 0:00:25.2]} 40. Bxc1
{[%clk 0:00:35.8]} 40... Qd8 {[%clk 0:00:23.8]} 41. Ba3 {[%clk 0:00:30.4]} 41...
Qxd6 {[%clk 0:00:17.9]} 42. Bxd6 {[%clk 0:00:30.4]} 42... Rb7 {[%clk 0:00:18.8]}
43. Bc7 {[%clk 0:00:27]} 43... Nc8 {[%clk 0:00:17.1]} 44. Ba6 {[%clk 0:00:25.8]}
44... Rxb6 {[%clk 0:00:16.7]} 45. Bxb6 {[%clk 0:00:24.2]} 45... Nxb6 {[%clk
0:00:16.2]} 46. Nxg6 {[%clk 0:00:24.2]} 46... fxg6 {[%clk 0:00:15.2]} 47. Kg2
{[%clk 0:00:22.9]} 47... Kf7 {[%clk 0:00:14.3]} 48. Kg3 {[%clk 0:00:23.2]} 48...
Nd7 {[%clk 0:00:13.4]} 49. h4 {[%clk 0:00:22.9]} 49... g5 {[%clk 0:00:12.8]} 50.
h5 {[%clk 0:00:20.5]} 50... Nf6 {[%clk 0:00:10.5]} 51. Kf2 {[%clk 0:00:19.7]}
51... Ne8 {[%clk 0:00:09]} 52. Bb5 {[%clk 0:00:19.5]} 52... Nd6 {[%clk
0:00:09.9]} 53. Bc6 {[%clk 0:00:19.1]} 53... Kf6 {[%clk 0:00:09.4]} 54. Ke3
{[%clk 0:00:19.2]} 54... Nc4+ {[%clk 0:00:08.8]} 55. Kd3 {[%clk 0:00:19.3]}
55... Nb2+ {[%clk 0:00:07.9]} 56. Kc3 {[%clk 0:00:19]} 56... Nc4 {[%clk
0:00:08.8]} 57. Bb5 {[%clk 0:00:18.7]} 57... Ne3 {[%clk 0:00:06.8]} 58. Bd3
{[%clk 0:00:18.2]} 58... Ng2 {[%clk 0:00:07.7]} 59. Be2 {[%clk 0:00:17.9]} 59...
Nf4 {[%clk 0:00:08.6]} 60. Bd1 {[%clk 0:00:18.1]} 60... Ke7 {[%clk 0:00:07.8]}
61. Kb4 {[%clk 0:00:17.4]} 61... Kd6 {[%clk 0:00:08.7]} 62. Kb5 {[%clk
0:00:17.6]} 62... e5 {[%clk 0:00:08.6]} 63. dxe5+ {[%clk 0:00:17.4]} 63... Kxe5
{[%clk 0:00:08.4]} 64. Kc5 {[%clk 0:00:17.7]} 64... d4 {[%clk 0:00:08]} 65. Kc4
{[%clk 0:00:17.6]} 65... Ne6 {[%clk 0:00:07.2]} 66. Kd3 {[%clk 0:00:17.4]} 66...
Nf4+ {[%clk 0:00:06.6]} 67. Kc4 {[%clk 0:00:17.1]} 67... Nd5 {[%clk 0:00:06.6]}
68. Kd3 {[%clk 0:00:16.5]} 68... Ne3 {[%clk 0:00:06.7]} 69. Bb3 {[%clk
0:00:15.9]} 69... Ng2 {[%clk 0:00:07.3]} 70. Ba4 {[%clk 0:00:14.4]} 70... Nf4+
{[%clk 0:00:08.2]} 71. Kc4 {[%clk 0:00:13.2]} 71... Nh3 {[%clk 0:00:06.6]} 72.
Bc6 {[%clk 0:00:13]} 72... Nf4 {[%clk 0:00:05.8]} 73. Be4 {[%clk 0:00:12.5]}
73... Ne6 {[%clk 0:00:04.4]} 74. Bb7 {[%clk 0:00:12.3]} 74... Nf4 {[%clk
0:00:03.1]} 75. Bc8 {[%clk 0:00:12.2]} 75... Nh3 {[%clk 0:00:04]} 76. Bb7 {[%clk
0:00:12]} 76... Nf4 {[%clk 0:00:04.8]} 77. Ba8 {[%clk 0:00:12.4]} 77... Ne2
{[%clk 0:00:05.7]} 78. Kd3 {[%clk 0:00:12.6]} 78... Nf4+ {[%clk 0:00:06.4]} 79.
Kd2 {[%clk 0:00:12.6]} 79... Ng2 {[%clk 0:00:06.7]} 80. Kd3 {[%clk 0:00:12.7]}
80... Nf4+ {[%clk 0:00:07.6]} 81. Kc4 {[%clk 0:00:13]} 81... Nh3 {[%clk
0:00:08.1]} 82. Be4 {[%clk 0:00:13.9]} 82... Nf4 {[%clk 0:00:08.6]} 83. Kc5
{[%clk 0:00:14]} 83... Nh3 {[%clk 0:00:09.3]} 84. Kc4 {[%clk 0:00:14.1]} 84...
Nf4 {[%clk 0:00:06.6]} 85. Bb7 {[%clk 0:00:14]} 85... Nh3 {[%clk 0:00:06.3]} 86.
Kd3 {[%clk 0:00:14.4]} 86... Nf4+ {[%clk 0:00:07.2]} 87. Kd2 {[%clk 0:00:14.6]}
87... Nh3 {[%clk 0:00:07.4]} 88. Be4 {[%clk 0:00:14.7]} 88... Nf4 {[%clk
0:00:08]} 89. Bf5 {[%clk 0:00:15]} 89... Nh3 {[%clk 0:00:08.5]} 90. Be4 {[%clk
0:00:15.4]} 90... Kf4 {[%clk 0:00:08.6]} 91. Kd3 {[%clk 0:00:14.8]} 91... Ng1
{[%clk 0:00:08.9]} 92. Kxd4 {[%clk 0:00:14]} 92... Nxf3+ {[%clk 0:00:09.3]} 93.
Kd5 {[%clk 0:00:13.3]} 93... Nh2 {[%clk 0:00:08.9]} 94. Bf5 {[%clk 0:00:12.4]}
94... Nxg4 {[%clk 0:00:07.3]} 95. Ke6 {[%clk 0:00:12.6]} 95... Nf6 {[%clk
0:00:06.9]} 96. Bg6 {[%clk 0:00:11.2]} 96... g4 {[%clk 0:00:05.2]} 97. Kf7
{[%clk 0:00:11.6]} 97... g3 {[%clk 0:00:05]} 98. Kxg7 {[%clk 0:00:12]} 98... Kg5
{[%clk 0:00:04.4]} 99. Be4 {[%clk 0:00:10]} 99... g2 {[%clk 0:00:05]} 100. Bxg2
{[%clk 0:00:10]} 100... Nxh5+ {[%clk 0:00:05.3]} 101. Kf7 {[%clk 0:00:08.5]}
1/2-1/2

[Event "*** Titled Tuesday Blitz"]
[Site "Chess.com"]
[Date "2020.04.21"]
[Round "8"]
[White "Ekka83"]
[Black "ReyesBraulio"]
[Result "1-0"]
[WhiteElo "2288"]
[BlackElo "2137"]
[TimeControl "180+1"]
[EndTime "11:33:36 PDT"]
[Termination "Ekka83 won by resignation"]

1. e4 {[%clk 0:03:00.9]} 1... d5 {[%clk 0:02:59.4]} 2. exd5 {[%clk 0:03:00.8]}
2... Qxd5 {[%clk 0:02:57]} 3. Nc3 {[%clk 0:03:00.6]} 3... Qd6 {[%clk 0:02:56.2]}
4. d4 {[%clk 0:02:54.9]} 4... a6 {[%clk 0:02:56.6]} 5. Ne4 {[%clk 0:02:53.3]}
5... Qg6 {[%clk 0:02:49.5]} 6. Ng3 {[%clk 0:02:45.4]} 6... e6 {[%clk 0:02:41.5]}
7. Nf3 {[%clk 0:02:41.4]} 7... Bd6 {[%clk 0:02:40.8]} 8. Bd3 {[%clk 0:02:40.8]}
8... f5 {[%clk 0:02:26.7]} 9. Qe2 {[%clk 0:02:26.8]} 9... Ne7 {[%clk 0:02:23.7]}
10. Bg5 {[%clk 0:02:21.3]} 10... O-O {[%clk 0:02:16.9]} 11. O-O-O {[%clk
0:02:18.7]} 11... f4 {[%clk 0:02:13.4]} 12. Bxg6 {[%clk 0:02:18]} 12... Nxg6
{[%clk 0:02:12.1]} 1-0

[Event "*** Titled Tuesday Blitz"]
[Site "Chess.com"]
[Date "2020.04.21"]
[Round "8"]
[White "bakki78"]
[Black "lucliasco"]
[Result "1-0"]
[WhiteElo "2781"]
[BlackElo "2644"]
[TimeControl "180+1"]
[EndTime "11:33:39 PDT"]
[Termination "bakki78 won by resignation"]

1. e4 {[%clk 0:03:00.9]} 1... e5 {[%clk 0:02:50.3]} 2. Nf3 {[%clk 0:03:00.3]}
2... d6 {[%clk 0:02:51.2]} 3. d4 {[%clk 0:02:59.8]} 3... exd4 {[%clk 0:02:41.8]}
4. Nxd4 {[%clk 0:03:00.2]} 4... Nf6 {[%clk 0:02:40.9]} 5. Nc3 {[%clk 0:03:00]}
5... Be7 {[%clk 0:02:39.7]} 6. g3 {[%clk 0:02:59.1]} 6... O-O {[%clk 0:02:40]}
7. Bg2 {[%clk 0:02:58.7]} 7... Nc6 {[%clk 0:02:40.6]} 8. Nde2 {[%clk 0:02:58.3]}
8... Re8 {[%clk 0:02:30.2]} 9. h3 {[%clk 0:02:58.3]} 9... h5 {[%clk 0:02:29.2]}
10. O-O {[%clk 0:02:58.5]} 10... Bd7 {[%clk 0:02:24.9]} 11. Nf4 {[%clk
0:02:55.8]} 11... Bf8 {[%clk 0:02:25.2]} 12. Nxh5 {[%clk 0:02:54.3]} 12... Nxh5
{[%clk 0:02:25.3]} 13. Qxh5 {[%clk 0:02:54.4]} 13... g6 {[%clk 0:02:23.7]} 14.
Qd1 {[%clk 0:02:52]} 14... Bg7 {[%clk 0:02:24.6]} 15. Nd5 {[%clk 0:02:52]} 15...
Ne7 {[%clk 0:02:21.3]} 16. Bg5 {[%clk 0:02:50.8]} 16... Be6 {[%clk 0:02:15.7]}
17. Nf6+ {[%clk 0:02:48.1]} 17... Bxf6 {[%clk 0:02:05.5]} 18. Bxf6 {[%clk
0:02:48.2]} 18... Qd7 {[%clk 0:02:06.1]} 19. Qd2 {[%clk 0:02:48.3]} 19... Kh7
{[%clk 0:02:05.7]} 20. Qg5 {[%clk 0:02:47.8]} 20... Ng8 {[%clk 0:02:03.3]} 21.
Qh4+ {[%clk 0:02:47.5]} 21... Nh6 {[%clk 0:02:02.8]} 22. Bg5 {[%clk 0:02:48.1]}
1-0

[Event "*** Titled Tuesday Blitz"]
[Site "Chess.com"]
[Date "2020.04.21"]
[Round "8"]
[White "pawnwonder"]
[Black "juniortay"]
[Result "0-1"]
[WhiteElo "2199"]
[BlackElo "2404"]
[TimeControl "180+1"]
[EndTime "11:33:56 PDT"]
[Termination "juniortay won by checkmate"]

1. e4 {[%clk 0:03:00.9]} 1... e5 {[%clk 0:02:59.7]} 2. Nf3 {[%clk 0:02:58.9]}
2... Nf6 {[%clk 0:02:59.7]} 3. Nxe5 {[%clk 0:02:57.5]} 3... Nc6 {[%clk
0:03:00.2]} 4. Nxc6 {[%clk 0:02:55.1]} 4... dxc6 {[%clk 0:03:01.1]} 5. Nc3
{[%clk 0:02:54.4]} 5... Bc5 {[%clk 0:03:00.8]} 6. Be2 {[%clk 0:02:53.4]} 6...
Qd4 {[%clk 0:02:59.9]} 7. O-O {[%clk 0:02:52.4]} 7... h5 {[%clk 0:03:00.4]} 8.
d3 {[%clk 0:02:50.3]} 8... Ng4 {[%clk 0:03:00.2]} 9. Qe1 {[%clk 0:02:36.7]} 9...
Qe5 {[%clk 0:02:58.7]} 10. g3 {[%clk 0:02:27.2]} 10... h4 {[%clk 0:02:58]} 11.
Kh1 {[%clk 0:01:22.5]} 11... hxg3 {[%clk 0:02:52.5]} 12. fxg3 {[%clk 0:01:19.3]}
12... Rxh2# {[%clk 0:02:50.4]} 0-1

[Event "*** Titled Tuesday Blitz"]
[Site "Chess.com"]
[Date "2020.04.21"]
[Round "8"]
[White "velemajstor767276"]
[Black "VALPARAISO37"]
[Result "1-0"]
[WhiteElo "2513"]
[BlackElo "2343"]
[TimeControl "180+1"]
[EndTime "11:34:05 PDT"]
[Termination "velemajstor767276 won by checkmate"]

1. Nf3 {[%clk 0:03:00.9]} 1... d5 {[%clk 0:02:59.6]} 2. d4 {[%clk 0:03:00.7]}
2... Nf6 {[%clk 0:02:58]} 3. Bf4 {[%clk 0:03:01.2]} 3... c5 {[%clk 0:02:57.5]}
4. e3 {[%clk 0:03:01.7]} 4... Nc6 {[%clk 0:02:56.6]} 5. Nbd2 {[%clk 0:03:01.6]}
5... cxd4 {[%clk 0:02:56.3]} 6. exd4 {[%clk 0:03:01.3]} 6... Bf5 {[%clk
0:02:56]} 7. c3 {[%clk 0:03:01]} 7... a6 {[%clk 0:02:55.2]} 8. Qb3 {[%clk
0:02:56.2]} 8... Qc8 {[%clk 0:02:54.1]} 9. Ne5 {[%clk 0:02:52.7]} 9... e6 {[%clk
0:02:48.9]} 10. Be2 {[%clk 0:02:46.5]} 10... Nxd4 {[%clk 0:02:40]} 11. cxd4
{[%clk 0:02:42.4]} 11... Bc2 {[%clk 0:02:38.6]} 12. Qc3 {[%clk 0:02:36.7]} 12...
Ne4 {[%clk 0:02:34.7]} 13. Nxe4 {[%clk 0:02:32.8]} 13... dxe4 {[%clk 0:02:33.1]}
14. Rc1 {[%clk 0:02:30.2]} 14... a5 {[%clk 0:02:27.1]} 15. O-O {[%clk
0:02:25.4]} 15... Bb4 {[%clk 0:02:22.4]} 16. Bb5+ {[%clk 0:02:21.5]} 16... Ke7
{[%clk 0:02:22.7]} 17. Qxc2 {[%clk 0:02:21.1]} 17... Qc3 {[%clk 0:02:21.5]} 18.
bxc3 {[%clk 0:02:20.2]} 18... f6 {[%clk 0:02:18.9]} 19. cxb4 {[%clk 0:02:18.7]}
19... Rac8 {[%clk 0:02:15.7]} 20. Qxc8 {[%clk 0:02:17.2]} 20... Rd8 {[%clk
0:02:10.5]} 21. Rc7+ {[%clk 0:02:15.3]} 21... Rd7 {[%clk 0:02:09.7]} 22. Rxd7#
{[%clk 0:02:13.1]} 1-0

[Event "*** Titled Tuesday Blitz"]
[Site "Chess.com"]
[Date "2020.04.21"]
[Round "8"]
[White "Evgeny81"]
[Black "DoHoChess"]
[Result "0-1"]
[WhiteElo "2712"]
[BlackElo "2571"]
[TimeControl "180+1"]
[EndTime "11:34:56 PDT"]
[Termination "DoHoChess won by checkmate"]

1. d4 {[%clk 0:03:00.9]} 1... d5 {[%clk 0:02:59.1]} 2. c4 {[%clk 0:03:01.1]}
2... e6 {[%clk 0:02:59]} 3. Nf3 {[%clk 0:03:00.6]} 3... Nf6 {[%clk 0:02:59]} 4.
Nc3 {[%clk 0:03:00.6]} 4... c5 {[%clk 0:02:59.1]} 5. cxd5 {[%clk 0:02:58.1]}
5... exd5 {[%clk 0:03:00]} 6. g3 {[%clk 0:02:54.1]} 6... Nc6 {[%clk 0:02:59.3]}
7. Bg2 {[%clk 0:02:54.4]} 7... cxd4 {[%clk 0:02:59.6]} 8. Nxd4 {[%clk 0:02:54]}
8... Bc5 {[%clk 0:03:00.3]} 9. Nxc6 {[%clk 0:02:51.3]} 9... bxc6 {[%clk
0:03:00.4]} 10. O-O {[%clk 0:02:51.8]} 10... O-O {[%clk 0:03:00.2]} 11. b3
{[%clk 0:02:51.3]} 11... h5 {[%clk 0:02:59.2]} 12. Bb2 {[%clk 0:02:48.3]} 12...
h4 {[%clk 0:02:55]} 13. Qd2 {[%clk 0:02:41.9]} 13... Re8 {[%clk 0:02:53.3]} 14.
Rad1 {[%clk 0:02:36.9]} 14... Bg4 {[%clk 0:02:46.4]} 15. gxh4 {[%clk 0:02:16.4]}
15... Nh5 {[%clk 0:02:22.7]} 16. h3 {[%clk 0:01:58.4]} 16... Qxh4 {[%clk
0:02:20.8]} 17. hxg4 {[%clk 0:01:47.9]} 17... Bd6 {[%clk 0:02:19.8]} 18. Rfe1
{[%clk 0:01:27.1]} 18... Qh2+ {[%clk 0:02:19.5]} 19. Kf1 {[%clk 0:01:27.1]}
19... Nf4 {[%clk 0:02:20.4]} 20. Bf3 {[%clk 0:01:27]} 20... Nh3 {[%clk
0:02:20.7]} 21. e3 {[%clk 0:01:20.3]} 21... Qg1+ {[%clk 0:02:17.4]} 22. Ke2
{[%clk 0:01:20.5]} 22... Nf4# {[%clk 0:02:13.9]} 0-1

[Event "*** Titled Tuesday Blitz"]
[Site "Chess.com"]
[Date "2020.04.21"]
[Round "8"]
[White "Enriquack"]
[Black "ShieldingOff"]
[Result "1-0"]
[WhiteElo "2255"]
[BlackElo "2013"]
[TimeControl "180+1"]
[EndTime "11:35:09 PDT"]
[Termination "Enriquack won by checkmate"]

1. e3 {[%clk 0:02:27.9]} 1... d5 {[%clk 0:02:58]} 2. b3 {[%clk 0:02:26.1]} 2...
c5 {[%clk 0:02:58.1]} 3. Bb2 {[%clk 0:02:26.4]} 3... Nc6 {[%clk 0:02:58.6]} 4.
Nf3 {[%clk 0:02:25.6]} 4... Nf6 {[%clk 0:02:57.6]} 5. Bb5 {[%clk 0:02:23.3]}
5... e6 {[%clk 0:02:54]} 6. c4 {[%clk 0:02:20.9]} 6... Be7 {[%clk 0:02:53]} 7.
Ne5 {[%clk 0:02:10.7]} 7... Qc7 {[%clk 0:02:48.1]} 8. O-O {[%clk 0:02:03.7]}
8... O-O {[%clk 0:02:45.9]} 9. Bxc6 {[%clk 0:02:02.5]} 9... bxc6 {[%clk
0:02:44.9]} 10. d3 {[%clk 0:02:00.6]} 10... a5 {[%clk 0:02:44.4]} 11. Nd2 {[%clk
0:01:48]} 11... a4 {[%clk 0:02:43.3]} 12. f4 {[%clk 0:01:44.9]} 12... Bb7 {[%clk
0:02:26.3]} 13. Rf3 {[%clk 0:01:24.8]} 13... Ne8 {[%clk 0:02:16.4]} 14. Rh3
{[%clk 0:01:21.8]} 14... Bf6 {[%clk 0:01:54.2]} 15. Qh5 {[%clk 0:01:13.1]} 15...
g6 {[%clk 0:01:54.1]} 16. Qxh7# {[%clk 0:01:08.6]} 1-0